Cogmind - Beta 9.6 *** ADVENTURER MODE // 2020.04.23 @ 23:06:27 Player: BinarySpace Result: Destroyed by D-53 Grenadier with Mini Grenade Launcher Performance ------------- Evolutions (0) 0 Regions Visited (4) 800 Robots Destroyed (33) 165 Value Destroyed (499) 499 Prototype IDs (2) 40 Alien Tech Used (0) 0 Bonus (0) 0 TOTAL SCORE: 1504 Bonus ------- None Cogmind --------- Core Integrity 0/250 Matter 214/300 Energy 98/100 System Corruption 2% Temperature Cool (1) Movement Treading (220) Ox3 Location -9/Mines Parts ------- > --- POWER (1) -------- (None) > --- PROPULSION (2) --- Improved Treads > --- UTILITY (2) ------ Humpback > --- WEAPON (2) ------- Axe > --- INVENTORY (24) --- Light Nuclear Core Improved Treads Wheel Compact Wheel Improved Heat Sink High-capacity Storage Unit Humpback High-capacity Matter Pod (200) Improved Terrain Scan Processor Improved Power Shielding Rocket Launcher Missile Launcher Peak State ------------ > --- POWER ------------ Light Nuclear Core > --- PROPULSION ------- Advanced Treads Wheel > --- UTILITY ---------- Improved Heat Sink High-capacity Storage Unit > --- WEAPON ----------- Light EM Pulse Cannon Missile Launcher > --- INVENTORY -------- Ion Engine Improved Treads Improved Treads Wheel Compact Wheel High-capacity Matter Pod Improved Terrain Scan Processor Improved Power Shielding EM Pulse Gun Light EM Pulse Cannon Light EM Pulse Cannon Axe [Rating: 18] Favorites ----------- Power Light Nuclear Core Engine Light Ion Engine Power Core Light Nuclear Core Propulsion Wheel Treads Advanced Treads Wheel Wheel Utility Improved Heat Sink Device Improved Heat Sink Storage High-capacity Storage Unit Weapon EM Pulse Gun Energy Gun EM Pulse Gun Energy Cannon Light EM Pulse Cannon Ballistic Gun Assault Rifle Launcher Rocket Launcher Slashing Weapon Axe Build | -11 -10 -10 -10 -9 ------- Run | Scr Mat Min Exi Min Slots Evolved . | . . . . . Power . | . . . . . Propulsion . | . . . . . Utility . | . . . . . Weapon . | . . . . . Parts Attached 22 | 6 5 3 1 7 Power 3 | 1 1 . . 1 Engine 2 | 1 . . . 1 Core 1 | . 1 . . . Reactor . | . . . . . Propulsion 5 | 2 1 1 . 1 Treads 4 | 1 1 1 . 1 Leg . | . . . . . Wheel 1 | 1 . . . . Hover . | . . . . . Flight . | . . . . . Utility 4 | 1 2 . 1 . Device 1 | . 1 . . . Storage 3 | 1 1 . 1 . Processor . | . . . . . Hackware . | . . . . . Protection . | . . . . . Artifact . | . . . . . Weapon 10 | 2 1 2 . 5 Energy Gun 3 | 1 . 1 . 1 Energy Cannon 3 | . 1 . . 2 Ballistic Gun 1 | 1 . . . . Ballistic Cannon . | . . . . . Launcher 2 | . . 1 . 1 Special Weapon . | . . . . . Impact Weapon . | . . . . . Slashing Weapon 1 | . . . . 1 Piercing Weapon . | . . . . . Special Melee Weapon . | . . . . . Unidentified Prototypes . | . . . . . Parts Lost 8 | . . . . 8 Power 2 | . . . . 2 Propulsion 2 | . . . . 2 Utility . | . . . . . Weapon 4 | . . . . 4 Highest Loss Streak 8 | . . . . 8 Average Slot Usage (%) 94 | . 97 100 94 81 Core 13 | . 12 14 14 12 Treads 14 | . 14 14 14 14 Wheel 13 | . 14 14 14 11 Device 9 | . 12 14 8 . Storage 14 | . 14 14 14 14 Energy Gun 13 | . 14 13 14 11 Energy Cannon 10 | . 1 14 14 14 Ballistic Gun 3 | . 11 . . . Naked Turns . | . . . . . Heaviest Build 93 | 11 44 44 91 93 Greatest Support 23 | 20 23 23 22 23 Greatest Overweight (x) 4 | 2 4 1 4 4 Average Overweight (x) 2 | . 2 1 1 3 Largest Inventory Capacity 24 | 6 12 12 24 24 Average Capacity 14 | 5 10 12 16 24 Most Carried 18 | 4 12 12 16 18 Average Carried 11 | 1 8 11 13 17 Final Capacity 24 | 6 12 12 24 24 Final Carried 16 | 4 12 12 16 13 Class Distribution -------------------- 74% | Mutant 25% | Hauler-Mutant Dominant Class ---------------- Mutant | -10/Materials Mutant | -10/Mines Mutant | -10/Exiles Hauler-Mutant | -9/Mines Resources | -11 -10 -10 -10 -9 ----------- Run | Scr Mat Min Exi Min Matter Collected 655 | 189 196 179 10 81 Remotely . | . . . . . Salvage Created 735 | . 387 117 . 231 Parts 43 | . 32 4 . 7 Haulers Intercepted 2 | . 2 . . . Recyclers Shooed 1 | . 1 . . . Parts Field Recycled . | . . . . . Retrieved Matter . | . . . . . Parts Self-Destructed . | . . . . . Prevented . | . . . . . Kills | -11 -10 -10 -10 -9 ------- Run | Scr Mat Min Exi Min Combat Hostiles Destroyed 28 | . 9 5 . 14 Guns 10 | . 9 . . 1 Cannons 4 | . . 1 . 3 AOE 13 | . . 3 . 10 Classes Destroyed 7 | . 4 1 . 2 Worker 1 | . . . . 1 Tunneler 1 | . . 1 . . Hauler 2 | . 2 . . . Watcher 1 | . 1 . . . Swarmer 9 | . 6 3 . . Grunt 8 | . 3 2 . 3 Assembled 11 | . . . . 11 Best Kill Streak 11 | . 4 4 . 11 Combat Bots Only 10 | . 3 3 . 10 Max Kills in Single Turn 4 | . 2 4 . 4 Gunslinging . | . . . . . Exploded 4 | . . 3 . 4 Melee . | . . . . . Uniques/NPCs Destroyed . | . . . . . Combat | -11 -10 -10 -10 -9 -------- Run | Scr Mat Min Exi Min Damage Taken 1279 | 3 113 76 . 1087 Core 259 | . 24 18 . 217 Absorbed by Shields . | . . . . . Core Remaining (%) 100 | 100 . . . . Volleys Fired 38 | . 18 5 . 15 Largest 2 | . 2 2 . 2 Hottest 96 | . 60 96 . 96 Shots Fired 76 | . 36 10 . 30 Gun 46 | . 36 4 . 6 Cannon 20 | . . 5 . 15 Launcher 10 | . . 1 . 9 Special . | . . . . . Kinetic 18 | . 18 . . . Thermal . | . . . . . Explosive 10 | . . 1 . 9 Electromagnetic 48 | . 18 9 . 21 Robot Hit Streak 16 | . 16 7 . 15 Robot Miss Streak 4 | . 4 1 . 1 Penetration Max . | . . . . . Secondary Targets . | . . . . . Shots Hit Robots 49 | . 25 8 . 16 Core Hits 53 | 1 15 8 . 29 Critical Hits . | . . . . . Critical Kills . | . . . . . Critical Parts Destroyed . | . . . . . Melee Attacks 1 | . . . . 1 Impact . | . . . . . Slashing 1 | . . . . 1 Piercing . | . . . . . Sneak Attacks . | . . . . . Combat Hostiles . | . . . . . Follow-up Attacks . | . . . . . Damage Inflicted 1872 | 6 358 436 . 1072 Guns 461 | . 349 37 . 75 Cannons 253 | . . 93 . 160 Explosions 1103 | . . 306 . 797 Melee 40 | . . . . 40 Ramming 15 | 6 9 . . . Kinetic 156 | . 156 . . . Thermal 187 | . . 156 . 31 Explosive 916 | . . 150 . 766 Electromagnetic 558 | . 193 130 . 235 Impact . | . . . . . Slashing 40 | . . . . 40 Piercing . | . . . . . Highest Corruption 2 | . 1 1 1 2 Average Corruption 1 | . 1 1 1 1 Corruption Purged . | . . . . . Effects 11 | . 1 2 5 3 Message Errors 4 | . 1 . 3 . Data Loss (minor) 6 | . . 2 2 2 Targeting Errors 1 | . . . . 1 Overload Shots . | . . . . . Overflow Damage 47 | . . 30 . 17 Projectiles . | . . . . . Explosions 47 | . . 30 . 17 Melee . | . . . . . Knockbacks . | . . . . . Impact . | . . . . . Kinetic . | . . . . . Secondary . | . . . . . Self-Inflicted Damage 107 | 3 . . . 104 Shots 3 | . . . . 3 Rammed 4 | 1 3 . . . Targets Rammed 4 | 1 3 . . . Kicked . | . . . . . Crushed . | . . . . . Highest Temperature 336 | . 24 45 . 336 Average Temperature 98 | . 15 26 . 126 Received Heat Transfer 227 | . 30 45 . 152 Effects 1 | . . . . 1 Short Circuit 1 | . . . . 1 Siege Activations . | . . . . . Robots Corrupted 1 | . . 1 . . Combat Hostiles 1 | . . 1 . . Parts Fried 1 | . . 1 . . Impact Corruptions . | . . . . . Robots Melted . | . . . . . Combat Hostiles . | . . . . . Parts Melted . | . . . . . Heat Transferred 250 | . . 250 . . Parts Sabotaged . | . . . . . Parts Stolen . | . . . . . Parts Stripped . | . . . . . Power Chain Reactions 1 | . . . . 1 Missiles Intercepted . | . . . . . Alert | -11 -10 -10 -10 -9 ------- Run | Scr Mat Min Exi Min Peak Influence 225 | . 131 225 . 99 Average Influence 73 | . 70 92 . 63 Maximum Alert Level 1 | . . 1 . . Low Security (%) 99 | 100 100 98 . 100 Level 1 . | . . 1 . . Level 2 . | . . . . . Level 3 . | . . . . . Level 4 . | . . . . . Level 5 . | . . . . . High Security . | . . . . . Max Security . | . . . . . Squads Dispatched 1 | . . 1 . . Investigation 1 | . . 1 . . Extermination . | . . . . . Reinforcement . | . . . . . Assault . | . . . . . Garrison . | . . . . . Intercept . | . . . . . Construction Impeded . | . . . . . Haulers Reinforced . | . . . . . Stealth | -11 -10 -10 -10 -9 --------- Run | Scr Mat Min Exi Min Distress Signals 2 | . 2 . . . Communications Jammed . | . . . . . Distress Signals . | . . . . . Times Spotted 41 | . 14 5 . 22 Peak Tracking Total 9 | . 3 3 . 9 Tactical Retreats 2 | . 1 . . 1 Traps | -11 -10 -10 -10 -9 ------- Run | Scr Mat Min Exi Min Traps Triggered 1 | . 1 . . . Indirectly . | . . . . . Trap Hack Attempts . | . . . . . Triggered . | . . . . . Disarmed . | . . . . . Reprogrammed . | . . . . . Reused . | . . . . . Traps Extracted . | . . . . . Installed . | . . . . . Triggered . | . . . . . Machines | -11 -10 -10 -10 -9 ---------- Run | Scr Mat Min Exi Min Machines Disabled 7 | . . 6 . 1 Max in Single Turn 6 | . . 6 . 1 Machines Sabotaged . | . . . . . Garrisons Compromised . | . . . . . Overloaded Fab Kills . | . . . . . Fab Network Shutdowns . | . . . . . Hacking | -11 -10 -10 -10 -9 --------- Run | Scr Mat Min Exi Min Machines Accessed 6 | . 3 2 1 . Terminals 3 | . 2 1 . . Fabricators . | . . . . . Repair Stations 1 | . 1 . . . Recycling Units . | . . . . . Scanalyzers . | . . . . . Garrison Access . | . . . . . Total Hacks 13 | . 6 6 1 . Successful 12 | . 5 6 1 . Failed 1 | . 1 . . . Catastrophic . | . . . . . Database Lockouts . | . . . . . Manual 5 | . 4 1 . . Terminals 10 | . 5 5 . . Fabricators . | . . . . . Repair Stations 1 | . 1 . . . Recycling Units . | . . . . . Scanalyzers . | . . . . . Garrison Access . | . . . . . Terminal Hacks 12 | . 5 6 1 . Record 4 | . . 3 1 . Part Schematic 2 | . 2 . . . Prototype ID Bank 1 | . 1 . . . Open Door 1 | . . 1 . . Branch Access Points 1 | . . 1 . . Scanalyzer Index 1 | . 1 . . . Unreport Threat 1 | . 1 . . . Dispatch Records 1 | . . 1 . . Fabricator Hacks . | . . . . . Repair Station Hacks . | . . . . . Recycling Unit Hacks . | . . . . . Scanalyzer . | . . . . . Garrison Access Hacks . | . . . . . Unauthorized Hacks . | . . . . . Terminals . | . . . . . Fabricators . | . . . . . Repair Stations . | . . . . . Recycling Units . | . . . . . Scanalyzers . | . . . . . Garrison Access . | . . . . . Data Cores Recovered . | . . . . . Used . | . . . . . Hacking Detections 2 | . 2 . . . Full Trace Events . | . . . . . Feedback Events . | . . . . . Feedback Blocked . | . . . . . Robot Schematics Acquired . | . . . . . Robots Built . | . . . . . Matter . | . . . . . Time . | . . . . . Total Robot Build Rating . | . . . . . Part Schematics Acquired 2 | . 2 . . . Parts Built . | . . . . . Matter . | . . . . . Time . | . . . . . Total Part Build Rating . | . . . . . Parts Repaired . | . . . . . Time . | . . . . . Parts Recycled . | . . . . . Recycled Matter . | . . . . . Retrieved Matter . | . . . . . Retrieved Components . | . . . . . Parts Scanalyzed . | . . . . . Part Schematics Acquired . | . . . . . Parts Damaged . | . . . . . Bothacking | -11 -10 -10 -10 -9 ------------ Run | Scr Mat Min Exi Min Used RIF Installer . | . . . . . Robots Hacked . | . . . . . Non-combat . | . . . . . Combat . | . . . . . Robot Hacks Applied . | . . . . . Relay Couplers Released . | . . . . . Robots Rewired . | . . . . . Allies Hacked . | . . . . . Hacks Repelled . | . . . . . Allies | -11 -10 -10 -10 -9 -------- Run | Scr Mat Min Exi Min Total Allies . | . . . . . Largest Group . | . . . . . Highest-Rated Group . | . . . . . Highest-Rated Ally . | . . . . . Total Orders . | . . . . . Ally Attacks . | . . . . . Total Damage . | . . . . . Kills . | . . . . . Allies Corrupted . | . . . . . Allies Melted . | . . . . . Intel | -11 -10 -10 -10 -9 ------- Run | Scr Mat Min Exi Min Robot Analysis Total . | . . . . . Derelict Logs Recovered 1 | . . 1 . . Drone Launches . | . . . . . Drone Recoveries . | . . . . . Exploration | -11 -10 -10 -10 -9 ------------- Run | Scr Mat Min Exi Min Turns Passed 2600 | 66 725 535 929 345 Spaces Moved 1463 | 52 479 302 502 128 Core 17 | 17 . . . . Treads 991 | 1 58 302 502 128 Legs . | . . . . . Wheels 455 | 34 421 . . . Hover . | . . . . . Flight . | . . . . . Fastest Speed 50 | 50 90 165 165 205 Average Speed 159 | 100 118 167 182 224 Slowest Speed 225 | 160 180 180 225 225 Overloaded Moves . | . . . . . Propulsion Burnouts . | . . . . . Robots Hopped . | . . . . . Cave-ins Triggered . | . . . . . Exploration Rate (%) 56 | 5 78 70 88 39 Regions Visited 4 Branch Regions 3 Pre-discovered Areas 1 | . . 1 . . Known Exits Taken . | . . . . . Unknown Exits Taken 4 | 1 1 1 1 . Scrap Searched 2 | . . 1 . 1 Spaces Dug . | . . . . . Terrain Destroyed 124 | . . 40 . 84 Melee . | . . . . . Projectile . | . . . . . AOE 124 | . . 40 . 84 Actions | -11 -10 -10 -10 -9 --------- Run | Scr Mat Min Exi Min Total 1653 | 62 599 323 515 154 Wait 83 | . 77 5 . 1 Move 1459 | 51 478 301 501 128 Hop . | . . . . . Pick Up 32 | 4 11 4 11 2 Fast Attach 10 | 6 3 . 1 . Attach 5 | . . . . 5 Detach . | . . . . . Swap 7 | . 2 3 . 2 Drop 14 | . 7 5 2 . Fire 38 | . 18 5 . 15 Melee 1 | . . . . 1 Ram 1 | 1 . . . . Kick . | . . . . . Crush 3 | . 3 . . . Escape Stasis . | . . . . . Rewire . | . . . . . Trap . | . . . . . Miscellaneous . | . . . . . Route ------- -11/Scrapyard -10/Materials (discovered 3 exits: [*Mat x2] / *Min) -10/Mines (discovered 2 exits: [*Mat] / *Exi) -10/Exiles -9/Mines History --------- Turn | Location | Event 9 | -11/Scrapyard | Discovered new exit (range 16) 67 | -11/Scrapyard | Entered Materials 194 | -10/Materials | Discovered new exit (range 10) 244 | -10/Materials | Discovered new exit (range 7) 312 | -10/Materials | Build established: Mutant 648 | -10/Materials | Discovered new exit (range 10) 792 | -10/Materials | Entered Mines 837 | -10/Mines | Learned location of Zion (-6) 862 | -10/Mines | Met a Derelict shopkeep closing up shop 1090 | -10/Mines | Found a hidden stash of uninstalled traps 1166 | -10/Mines | Discovered new exit (range 10) 1318 | -10/Mines | Deemed a non-threat by the Exiles lab entrance 1320 | -10/Mines | Discovered new exit (range 5) 1327 | -10/Mines | Entered Exiles 1327 | -10/Exiles | Found Exiles lab abandoned 2024 | -10/Exiles | Discovered new exit (range 14) 2219 | -10/Exiles | Build established: Hauler-Mutant 2256 | -10/Exiles | Entered Mines 2283 | -9/Mines | Met a Derelict bent on vengeance 2380 | -9/Mines | Joined a pair of Derelicts in attacking an 0b10 outpost 2527 | -9/Mines | Assembled infested the area 2581 | -9/Mines | Destroyed 10 combat bots 2583 | -9/Mines | Core integrity fell below 50% 2595 | -9/Mines | Core integrity fell below 20% 2601 | -9/Mines | Destroyed by D-53 Grenadier with Mini Grenade Launcher Last Messages --------------- 02569_ K-01 Serf collects debris. 02571_ Lgt. EM Pulse Cannon destroyed. 02575_ C-30 ARC bursts open, deploying its payload. 02575_ D-53 Grenadier unfolds itself. 02576_ K-01 Serf destroyed. 02576_ as-22530 destroyed. 02577_ The unstable cave ceiling collapses. 02582_ as-44224 destroyed. 02584_ The unstable cave ceiling collapses. 02585_ System corrupted: EM Pulse Gun targeting data glitched. 02587_ The unstable cave ceiling collapses. 02587_ Lgt. EM Pulse Cannon destroyed. 02589_ EM Pulse Gun destroyed. 02592_ The unstable cave ceiling collapses. 02593_ Ion Engine destroyed. 02595_ The unstable cave ceiling collapses. 02595_ Adv. Treads destroyed. 02596_ Lgt. EM Pulse Cannon destroyed. 02596_ D-53 Grenadier destroyed. 02598_ The unstable cave ceiling collapses. Map ----- +----------------------------------------------------+ | ????????????????????????? ####??# #???????? | | ????????????????????????? #??# #???????? | | ?????????????????????????# ? #??# #???????? | | ?????????????????????????# #?# #??# ##??????? | | ?????????????????????????# ### #??# ##?????? | | ?????????????????????????# #### ####??? | | ?????????????????????????# ### | | ???????????????????????### #?# #####? | | ???????????????????????# #?###### ## ## ##????? | | ???????????????????????# ###??????# #? #?###?????? | | ???????????????????????# #????????# #? #?????????? | | ???????????????????????# #????????# #? #?????????? | | ???????????????????????# #????????# #? #?????????? | | ???????????????????????# #????????# #? ?????????? | | ???????????????????????# #????????# #??#?????????? | | ???????????????????????# #????????# ?????????????? | | ??????????????????????## #????????# ?????????????? | | ??????????????????##### ########?? ?????????????? | | ?????????????????## #????????????? | | ?????????????????# #######??#?????????????? | | ?????????????????# #??????????????????????? | | ?????????????????#### ##??????????????????????? | | ?????? ???##???????## % ####????????????????????? | | ?????? ## ???##### ##???????????????????? | | ????? ### d ##??????????????????? | | ????? =% @ ###????????????????? | | ??? % ### #????????????????? | | ???? ! # % #????????????????? | | ???? # a ##????????????????? | | ?????????# % #?????????????????? | | ?????????# % ! # #?????????????????? | | ????????# #????????????????? | | ????????### ##### ##????????????????? | | ??????????#######???## ####?????????????????? | | ?????????????????????#######?????????????????????? | | | | | | | | | | | | | | | | | | | | | | | | | | | | | | | +----------------------------------------------------+ Best States ------------- Heat Dissipation 39 Energy Generation 14 Energy Capacity 250 Matter Stores 300 Matter Capacity 300 Sight Range 16 Terrain Scan Density 10 Resistance: KI 20 Resistance: TH 20 Resistance: EX 20 Resistance: EM 20 Resistance: I 20 Resistance: S 20 Resistance: P 20 Evasion (%) 44 Recoil Reduction 1 Offensive Hacking 10 Item Schematics ----------------- Lrg. Storage Unit | -10/Materials | Hacked Hcp. Storage Unit | -10/Materials | Hacked Robot Schematics ------------------ None Fabricated ------------ Nothing Alien Tech Used ----------------- None Achievements -------------- None Challenges ------------ None Game ------ Seed SuspensionPlasmaPlating Manual? 0 Play Time 00:21:37 Cumulative 27.2 hours Start 2020.04.23 @ 20:38:43 End 2020.04.23 @ 23:06:27 Sessions 1 Manual Loads 0 Difficulty Adventurer Special Mode None Game No. 10 Rogue 2 Adventurer 8 Explorer 0 Win Type - Total 0 Types 0/0/0/0/0/0/0 Lore% 16 Gallery% 27 Achievement% 26 Wizard Run 0 Options --------- ASCII 0 Keyboard 0 Movement Numpad Keybinds 0 Fullscreen 1 Font 18/SmallcapsGlow Map View 76x50 Tactical HUD 1 Map Filters NONE Filters NONE Steam 0 RUN: 9d534307-b191-4fd6-86d8-4563289db18b